fUST/lending_fUST_20260516
["ID","MTS","AMOUNT","RATE_DAILY","PERIOD"]
[422392983,1778923836000,-300.0,5.588e-05,2]
[422392984,1778923836000,-300.0,5.588e-05,2]
[422392986,1778923836000,-300.0,5.588e-05,2]
[422392988,1778923836000,-300.0,5.588e-05,2]
[422392990,1778923836000,-300.0,5.588e-05,2]
[422392937,1778923836000,-989.65864297,5.479e-05,7]
[422392980,1778923836000,-685.51200573,5.507e-05,7]
[422392963,1778923836000,-348.05988153,5.479e-05,7]
[422392973,1778923836000,-655.38116315,5.507e-05,7]
[422392959,1778923836000,-381.19558665,5.479e-05,7]
[422392938,1778923836000,-855.25837749,5.479e-05,7]
[422392941,1778923836000,-448.04897112,5.479e-05,7]
[422392940,1778923836000,-7.95102888,5.479e-05,7]
[422392939,1778923836000,-562.22122278,5.479e-05,7]
[422392974,1778923836000,-281.24690494,5.507e-05,7]
[422392944,1778923836000,-653.53773339,5.479e-05,7]
[422392943,1778923836000,-490.15330004,5.479e-05,7]
[422392947,1778923836000,-313.54291917,5.479e-05,7]
[422392989,1778923836000,-300.0,5.588e-05,2]
[422392946,1778923836000,-449.16686646,5.479e-05,2]
[422392945,1778923836000,-320.57831441,5.479e-05,7]
[422392948,1778923836000,-420.37715353,5.479e-05,7]
[422392949,1778923836000,-627.08583834,5.479e-05,7]
[422392942,1778923836000,-692.2955322,5.479e-05,7]
[422392961,1778923836000,-523.20349792,5.479e-05,7]
[422392962,1778923836000,-610.34588399,5.479e-05,7]
[422392951,1778923836000,-313.8315025,5.479e-05,7]
[422392958,1778923836000,-707.8116562,5.479e-05,7]
[422392950,1778923836000,-470.31437876,5.479e-05,7]
[422392954,1778923836000,-606.44345565,5.479e-05,7]
[422392956,1778923836000,-778.16082446,5.479e-05,7]
[422392960,1778923836000,-331.91249281,5.479e-05,7]
[422392957,1778923836000,-1037.54776594,5.479e-05,7]
[422392952,1778923836000,-404.2956371,5.479e-05,7]
[422392953,1778923836000,-808.5912742,5.479e-05,7]
[422392955,1778923836000,-518.77388297,5.479e-05,7]
[422393005,1778923837000,-823.37948896,5.781e-05,7]
[422393000,1778923837000,-536.42719881,5.757e-05,7]
[422393008,1778923837000,-1045.91485431,5.781e-05,7]
[422393006,1778923837000,-1237.07330371,5.781e-05,7]
[422393007,1778923837000,-1263.1921756,5.781e-05,7]
[422393003,1778923837000,-767.01988118,5.781e-05,7]
[422393002,1778923837000,-816.13168724,5.781e-05,7]
[422392998,1778923837000,-600.0,5.588e-05,2]
[422392996,1778923837000,-300.0,5.588e-05,2]
[422392997,1778923837000,-300.0,5.588e-05,2]
[422392993,1778923837000,-300.0,5.588e-05,2]
[422392995,1778923837000,-300.0,5.588e-05,2]
[422392994,1778923837000,-300.0,5.588e-05,2]
[422392992,1778923837000,-300.0,5.588e-05,2]
[422392991,1778923837000,-300.0,5.588e-05,2]
[422393004,1778923837000,-809.46146147,5.781e-05,2]
[422392999,1778923837000,-544.95168213,5.757e-05,7]
[422393011,1778923837000,-783.85729793,5.781e-05,7]
[422393016,1778923837000,-837.32724705,5.809e-05,7]
[422393001,1778923837000,-973.34920119,5.781e-05,7]
[422393010,1778923837000,-816.92216674,5.781e-05,7]
[422393026,1778923837000,-152.0,5.886e-05,7]
[422393028,1778923837000,-10945.87138047,6.047e-05,2]
[422393027,1778923837000,-152.0,5.888e-05,7]
[422393019,1778923837000,-811.60922894,5.809e-05,7]
[422393015,1778923837000,-635.42523385,5.809e-05,7]
[422393017,1778923837000,-771.24910067,5.809e-05,2]
[422393018,1778923837000,-5197.1943908,5.809e-05,7]
[422393025,1778923837000,-152.0,5.886e-05,7]
[422393022,1778923837000,-921.733599,5.809e-05,7]
[422393020,1778923837000,-2111.54367761,5.809e-05,7]
[422393021,1778923837000,-819.22645394,5.809e-05,7]
[422393024,1778923837000,-2203.2870672,5.809e-05,7]
[422393013,1778923837000,-1296.93470743,5.781e-05,7]
[422393014,1778923837000,-764.25141458,5.781e-05,7]
[422393009,1778923837000,-1425.43062915,5.781e-05,7]
[422393023,1778923837000,-856.89000716,5.809e-05,7]
[422393012,1778923837000,-1010.73909275,5.781e-05,7]
[422393090,1778923838000,-500.0,6.233e-05,2]
[422393094,1778923838000,-450.0,6.233e-05,2]
[422393098,1778923838000,-979.35802469,6.233e-05,7]
[422393100,1778923838000,-920.42385742,6.233e-05,7]
[422393106,1778923838000,-1484.48796445,6.233e-05,7]
[422393104,1778923838000,-988.05538675,6.233e-05,7]
[422393108,1778923838000,-1515.83061072,6.233e-05,7]
[422393096,1778923838000,-1168.01904143,6.233e-05,7]
[422393092,1778923838000,-601.695134,6.233e-05,2]
[422393102,1778923838000,-971.35375376,6.233e-05,2]
[422393110,1778923838000,-1255.09782517,6.233e-05,7]
[422393082,1778923838000,-500.0,6.233e-05,2]
[422393088,1778923838000,-500.0,6.233e-05,2]
[422393084,1778923838000,-500.0,6.233e-05,2]
[422393073,1778923838000,-726.60224284,6.059e-05,7]
[422393079,1778923838000,-500.0,6.233e-05,2]
[422393075,1778923838000,-715.23626508,6.059e-05,7]
[422393086,1778923838000,-500.0,6.233e-05,2]
[422393080,1778923838000,-500.0,6.233e-05,2]
[422393071,1778923838000,-166.4964389,6.047e-05,2]
[422393069,1778923838000,-2846.34784762,6.047e-05,2]
[422393067,1778923838000,-4309.70128211,6.047e-05,2]
[422393077,1778923838000,-720.0,6.147e-05,2]
[422393112,1778923838000,-1710.51675498,6.233e-05,7]
[422393151,1778923838000,-852.18969039,6.234e-05,7]
[422393128,1778923838000,-827.53788717,6.234e-05,7]
[422393126,1778923838000,-765.07185385,6.234e-05,2]
[422393163,1778923838000,-1223.94291462,6.234e-05,7]
[422393161,1778923838000,-1478.20360974,6.234e-05,7]
[422393159,1778923838000,-1668.05711922,6.234e-05,7]
[422393157,1778923838000,-775.25996869,6.234e-05,7]
[422393155,1778923838000,-777.17682279,6.234e-05,7]
[422393143,1778923838000,-6081.82322327,6.234e-05,7]
[422393141,1778923838000,-1072.62077642,6.234e-05,7]
[422393147,1778923838000,-801.12598926,6.234e-05,7]
[422393149,1778923838000,-2470.95536741,6.234e-05,7]
[422393145,1778923838000,-1447.63897243,6.234e-05,7]
[422393139,1778923838000,-936.78795296,6.234e-05,7]
[422393136,1778923838000,-867.18532575,6.234e-05,7]
[422393153,1778923838000,-916.47870266,6.234e-05,7]
[422393114,1778923838000,-980.30660008,6.233e-05,7]
[422393116,1778923838000,-940.62875751,6.233e-05,7]
[422393118,1778923838000,-1212.8869113,6.233e-05,7]
[422393132,1778923838000,-879.42491302,6.234e-05,7]
[422393120,1778923838000,-1556.32164891,6.233e-05,7]
[422393130,1778923838000,-883.28294161,6.234e-05,7]
[422393134,1778923838000,-827.28816316,6.234e-05,7]
[422393138,1778923838000,-757.84438372,6.234e-05,7]
[422393124,1778923838000,-135.9240086,6.234e-05,7]
[422393122,1778923838000,-917.1016975,6.233e-05,7]
[422393220,1778923839000,-908.25280355,6.512e-05,7]
[422393224,1778923839000,-864.0,6.762e-05,2]
[422393216,1778923839000,-1028.26800859,6.262e-05,7]
[422393212,1778923839000,-983.07174473,6.262e-05,7]
[422393222,1778923839000,-894.04533135,6.512e-05,7]
[422393235,1778923839000,-1768.46904584,6.912e-05,7]
[422393218,1778923839000,-2754.108834,6.262e-05,7]
[422393228,1778923839000,-1073.82783366,6.912e-05,7]
[422393234,1778923839000,-1731.90262519,6.912e-05,7]
[422393243,1778923839000,-1097.4002171,6.912e-05,7]
[422393239,1778923839000,-1995.60288081,6.912e-05,7]
[422393249,1778923839000,-4061.88330694,6.912e-05,7]
[422393251,1778923839000,-6746.90326369,6.912e-05,7]
[422393262,1778923839000,-7276.07214711,6.94e-05,7]
[422393255,1778923839000,-2741.16761057,6.912e-05,7]
[422393241,1778923839000,-1143.69103343,6.912e-05,7]
[422393253,1778923839000,-1069.95198042,6.912e-05,7]
[422393258,1778923839000,-1172.25814587,6.94e-05,7]
[422393245,1778923839000,-1415.03472985,6.912e-05,7]
[422393247,1778923839000,-1815.7085904,6.912e-05,7]
[422393237,1778923839000,-1464.28079604,6.912e-05,7]
[422393226,1778923839000,-1142.58436214,6.912e-05,7]
[422393198,1778923839000,-972.19801188,6.234e-05,7]
[422393214,1778923839000,-1106.0803188,6.262e-05,7]
[422393167,1778923839000,-826.23343458,6.234e-05,7]
[422393175,1778923839000,-921.733599,6.234e-05,7]
[422393165,1778923839000,-796.74531878,6.234e-05,2]
[422393179,1778923839000,-794.07407407,6.234e-05,7]
[422393177,1778923839000,-962.50042814,6.234e-05,2]
[422393171,1778923839000,-880.37982937,6.234e-05,7]
[422393169,1778923839000,-809.46146147,6.234e-05,2]
[422393173,1778923839000,-914.69142993,6.234e-05,7]
[422393183,1778923839000,-1517.68955124,6.234e-05,7]
[422393185,1778923839000,-762.67196555,6.234e-05,7]
[422393232,1778923839000,-1152.73128454,6.912e-05,7]
[422393196,1778923839000,-979.01023593,6.234e-05,7]
[422393194,1778923839000,-856.89000716,6.234e-05,7]
[422393193,1778923839000,-836.02723399,6.234e-05,7]
[422393210,1778923839000,-2533.85241313,6.262e-05,7]
[422393208,1778923839000,-973.93107473,6.262e-05,7]
[422393191,1778923839000,-900.80818613,6.234e-05,7]
[422393187,1778923839000,-776.85497912,6.234e-05,7]
[422393203,1778923839000,-1004.79269646,6.262e-05,7]
[422393256,1778923839000,-1215.25143585,6.912e-05,7]
[422393204,1778923839000,-925.49892081,6.262e-05,2]
[422393200,1778923839000,-853.37881735,6.234e-05,7]
[422393189,1778923839000,-1182.77978938,6.234e-05,7]
[422393260,1778923839000,-1079.74874094,6.94e-05,2]
[422393206,1778923839000,-6236.63326895,6.262e-05,7]
[422393266,1778923839000,-1290.4270386,6.94e-05,7]
[422393300,1778923839000,-4642.15235079,7.929e-05,7]
[422393318,1778923839000,-1251.66346389,8.208e-05,7]
[422393308,1778923839000,-3855.7523676,7.958e-05,7]
[422393319,1778923839000,-444.82932638,8.216e-05,2]
[422393307,1778923839000,-3378.46988417,7.958e-05,7]
[422393310,1778923839000,-1087.01860352,8e-05,2]
[422393309,1778923839000,-1320.88550404,8e-05,2]
[422393317,1778923839000,-244.0,8.181e-05,2]
[422393312,1778923839000,-609.7744555,8e-05,2]
[422393313,1778923839000,-2407.90410756,8e-05,2]
[422393298,1778923839000,-1617.1825484,7.929e-05,7]
[422393314,1778923839000,-151.0,8.037e-05,2]
[422393311,1778923839000,-1798.12965206,8e-05,2]
[422393315,1778923839000,-236.91011395,8.143e-05,2]
[422393320,1778923839000,-156.33884175,8.219e-05,2]
[422393321,1778923839000,-423.07576309,8.219e-05,2]
[422393323,1778923839000,-1000.0,9e-05,2]
[422393322,1778923839000,-2407.90410756,8.274e-05,2]
[422393325,1778923839000,-647.0,9.031e-05,2]
[422393324,1778923839000,-492.0,9e-05,2]
[422393326,1778923839000,-1529.62266441,9.031e-05,2]
[422393268,1778923839000,-1199.64601002,6.94e-05,7]
[422393316,1778923839000,-1000.0,8.181e-05,2]
[422393304,1778923839000,-1388.85878383,7.929e-05,7]
[422393230,1778923839000,-1133.24604606,6.912e-05,2]
[422393302,1778923839000,-3132.7629835,7.929e-05,7]
[422393278,1778923839000,-3304.9306008,6.94e-05,7]
[422393303,1778923839000,-1222.80226333,7.929e-05,7]
[422393264,1778923839000,-2956.16114865,6.94e-05,7]
[422393288,1778923839000,-151.0,7.837e-05,2]
[422393280,1778923839000,-151.0,6.977e-05,2]
[422393290,1778923839000,-1227.23180989,7.929e-05,7]
[422393292,1778923839000,-1979.31728593,7.929e-05,7]
[422393289,1778923839000,-1305.81069959,7.929e-05,7]
[422393283,1778923839000,-411.03546318,7.323e-05,2]
[422393293,1778923839000,-2021.10748096,7.929e-05,7]
[422393291,1778923839000,-1317.40718234,7.929e-05,7]
[422393287,1778923839000,-32332.46136862,7.6e-05,2]
[422393286,1778923839000,-151.0,7.595e-05,2]
[422393285,1778923839000,-1000.0,7.438e-05,2]
[422393295,1778923839000,-2280.68900664,7.929e-05,7]
[422393305,1778923839000,-1233.99856108,7.958e-05,2]
[422393294,1778923839000,-1673.4637669,7.929e-05,7]
[422393299,1778923839000,-2075.09553188,7.929e-05,7]
[422393306,1778923839000,-8315.51102527,7.958e-05,7]
[422393296,1778923839000,-1307.07546678,7.929e-05,7]
[422393297,1778923839000,-1254.17167668,7.929e-05,7]
[422393301,1778923839000,-7710.74658707,7.929e-05,7]
[422393281,1778923839000,-1072.85439762,7.19e-05,7]
[422393331,1778923840000,-672.37733559,9.031e-05,2]
[422393332,1778923840000,-714.24641525,9.031e-05,2]
[422393376,1778923854000,-698.75358475,9.031e-05,2]
[422393378,1778923854000,-187.0,9.031e-05,2]
[422393379,1778923854000,-155.36244936,9.034e-05,2]
[422393374,1778923854000,-152.0,6.031e-05,7]
[422393373,1778923854000,-152.0,6.031e-05,7]
[422393385,1778923854000,-473.73578808,9.323e-05,2]
[422393375,1778923854000,-152.0,8.926e-05,2]
[422393377,1778923854000,-447.475,9.031e-05,2]
[422393382,1778923854000,-258.32209514,9.205e-05,2]
[422393384,1778923854000,-10.58025881,9.205e-05,2]
[422393387,1778923854000,-164.9947176,9.455e-05,2]
[422393380,1778923854000,-2139.00175361,9.205e-05,2]
[422393389,1778923854000,-268.341,9.455e-05,2]
[422393386,1778923854000,-794.0,9.4e-05,2]
[422393395,1778923854000,-1470.45990013,9.456e-05,7]
[422393393,1778923854000,-449.85336501,9.456e-05,7]
[422393396,1778923854000,-1819.33036694,9.456e-05,7]
[422393392,1778923854000,-1432.79337275,9.456e-05,7]
[422393394,1778923854000,-2565.77513247,9.456e-05,7]
[422393391,1778923854000,-2273.74591608,9.456e-05,7]
[422393388,1778923854000,-155.077,9.455e-05,2]
[422393397,1778923854000,-2334.48247337,9.456e-05,7]
[422393398,1778923854000,-3.8670657,9.456e-05,7]
[422393390,1778923854000,-2226.73194668,9.456e-05,7]
[422393400,1778923870000,-5000.0,8.837e-05,2]
[422393409,1778924094000,-356.25705759,5.479e-05,7]
[422393408,1778924094000,-371.02441275,5.479e-05,7]
[422393406,1778924094000,-185.51220638,5.479e-05,7]
[422393407,1778924094000,-178.1285288,5.479e-05,7]
[422393411,1778924095000,-363.77886929,5.479e-05,7]
[422393416,1778924095000,-203.75353172,5.479e-05,7]
[422393415,1778924095000,-307.87568543,5.479e-05,7]
[422393417,1778924095000,-407.50706343,5.479e-05,7]
[422393413,1778924095000,-301.20652299,5.479e-05,7]
[422393414,1778924095000,-153.93784272,5.479e-05,7]
[422393412,1778924095000,-150.60326149,5.479e-05,7]
[422393419,1778924095000,-373.49617147,5.479e-05,7]
[422393418,1778924095000,-611.26059515,5.479e-05,7]
[422393410,1778924095000,-181.88943465,5.479e-05,7]
[422393420,1778924095000,-186.74808573,5.479e-05,7]
[422393425,1778924095000,-506.40290249,5.479e-05,7]
[422393421,1778924095000,-304.01170215,5.479e-05,7]
[422393431,1778924095000,-171.37800143,5.479e-05,7]
[422393432,1778924095000,-227.56885061,5.479e-05,7]
[422393422,1778924095000,-152.00585108,5.479e-05,7]
[422393428,1778924095000,-634.37332356,5.479e-05,7]
[422393424,1778924095000,-168.8009675,5.479e-05,7]
[422393423,1778924095000,-456.01755323,5.479e-05,7]
[422393430,1778924095000,-184.34671981,5.479e-05,7]
[422393426,1778924095000,-337.60193499,5.479e-05,7]
[422393427,1778924095000,-211.45777452,5.479e-05,7]
[422393429,1778924095000,-422.91554904,5.479e-05,7]
[422393436,1778924256000,10000.0,5e-05,2]
[422393437,1778924265000,2500.0,0.00018493,120]
[422393439,1778924314000,1817.0,5e-05,2]
[422393442,1778924446000,2000.0,0.00018493,120]
[422393446,1778924524000,279.61268103,5e-05,2]
[422393450,1778924623000,3933.93150169,5e-05,2]
[422393451,1778924659000,5000.0,5e-05,2]
[422393452,1778924681000,5000.0,5e-05,2]
[422393455,1778924703000,5000.0,5e-05,2]
[422393457,1778924725000,4724.08757963,5e-05,2]
[422393461,1778924822000,161.1391994,2.289e-05,2]
[422393505,1778925034000,-540.02791868,5.479e-05,7]
[422393503,1778925034000,-180.00930623,5.479e-05,7]
[422393485,1778925034000,-69.60562179,5.143e-05,2]
[422393484,1778925034000,-269.08724583,5.143e-05,2]
[422393486,1778925034000,-200.0,5.206e-05,2]
[422393488,1778925034000,-251.69072917,5.477e-05,2]
[422393487,1778925034000,-928.0,5.477e-05,2]
[422393490,1778925034000,-3.62814708,5.478e-05,2]
[422393489,1778925034000,-948.30927083,5.477e-05,2]
[422393491,1778925034000,-258.37185292,5.478e-05,2]
[422393493,1778925034000,-300.0,5.478e-05,2]
[422393495,1778925034000,-295.78143503,5.478e-05,2]
[422393494,1778925034000,-4.21856497,5.478e-05,2]
[422393500,1778925034000,-210.79010161,5.479e-05,7]
[422393496,1778925034000,-207.31369266,5.479e-05,2]
[422393506,1778925034000,-720.03722491,5.479e-05,7]
[422393498,1778925034000,-746.50277833,5.479e-05,7]
[422393492,1778925034000,-300.0,5.478e-05,2]
[422393499,1778925034000,-249.44095166,5.479e-05,7]
[422393502,1778925034000,-199.32029048,5.479e-05,7]
[422393497,1778925034000,-270.09966828,5.479e-05,7]
[422393507,1778925034000,-169.2268997,5.479e-05,7]
[422393501,1778925034000,-421.58020323,5.479e-05,7]
[422393504,1778925034000,-360.01861246,5.479e-05,7]
[422393508,1778925034000,-37.88813811,5.479e-05,7]
[422393690,1778925038000,-32.8459117,5.479e-05,7]
[422393700,1778925038000,-157.34140311,5.479e-05,7]
[422393692,1778925038000,-743.61009113,5.479e-05,7]
[422393694,1778925038000,-317.62997047,5.479e-05,7]
[422393686,1778925038000,-495.74006075,5.479e-05,7]
[422393680,1778925038000,-100.87729535,5.479e-05,7]
[422393688,1778925038000,-125.96907353,5.479e-05,7]
[422393698,1778925038000,-314.68280623,5.479e-05,7]
[422393682,1778925038000,-247.87003038,5.479e-05,7]
[422393652,1778925038000,-469.792561,5.479e-05,7]
[422393666,1778925038000,-268.15148514,5.479e-05,7]
[422393664,1778925038000,-184.51439025,5.479e-05,7]
[422393663,1778925038000,-324.22885061,5.479e-05,7]
[422393714,1778925038000,-684.1025822,5.479e-05,7]
[422393655,1778925038000,-338.4537994,5.479e-05,7]
[422393661,1778925038000,-347.26474999,5.479e-05,7]
[422393659,1778925038000,-257.17951935,5.479e-05,7]
[422393657,1778925038000,-676.90759881,5.479e-05,7]
[422393696,1778925038000,-270.40855245,5.479e-05,7]
[422393715,1778925038000,-369.15621399,5.479e-05,7]
[422393684,1778925038000,-396.07657076,5.479e-05,7]
[422393702,1778925038000,-182.12551174,5.479e-05,7]
[422393729,1778925038000,-300.96980424,5.479e-05,7]
[422393742,1778925038000,-689.66951695,5.479e-05,7]
[422393740,1778925038000,-431.50613744,5.479e-05,7]
[422393737,1778925038000,-465.13790429,5.479e-05,7]
[422393733,1778925038000,-451.45470635,5.479e-05,7]
[422393735,1778925038000,-601.93960847,5.479e-05,7]
[422393731,1778925038000,-150.48490212,5.479e-05,7]
[422393728,1778925038000,-621.66640241,5.479e-05,2]
[422393718,1778925038000,-553.73432099,5.479e-05,7]
[422393708,1778925038000,-171.02564555,5.479e-05,7]
[422393739,1778925038000,-318.79125682,5.479e-05,7]
[422393712,1778925038000,-513.07693665,5.479e-05,7]
[422393706,1778925038000,-540.91540319,5.479e-05,7]
[422393726,1778925038000,-466.2498018,5.479e-05,2]
[422393723,1778925038000,-310.8332012,5.479e-05,2]
[422393720,1778925038000,-738.31242799,5.479e-05,7]
[422393716,1778925038000,-184.578107,5.479e-05,7]
[422393722,1778925038000,-155.4166006,5.479e-05,2]
[422393704,1778925038000,-270.4577016,5.479e-05,7]
[422393710,1778925038000,-342.0512911,5.479e-05,7]
[422393748,1778925039000,-558.65185651,5.479e-05,7]
[422393750,1778925039000,-744.86914201,5.479e-05,7]
[422393744,1778925039000,-517.25213771,5.479e-05,7]
[422393752,1778925039000,-504.82147387,5.479e-05,7]
[422393753,1778925039000,-673.09529849,5.479e-05,7]
[422393755,1778925039000,-80.9731225,5.507e-05,7]
[422393746,1778925039000,-717.0707869,5.479e-05,2]
[422393846,1778925040000,-495.840245,5.507e-05,7]
[422393847,1778925041000,-238.20075937,5.507e-05,7]
[422393849,1778925041000,-608.0234043,5.507e-05,7]
[422393850,1778925041000,-675.20386998,5.507e-05,7]
[422393851,1778925041000,-168.60574024,5.507e-05,7]
[422393852,1778925041000,-109.47982479,5.507e-05,2]
[422393853,1778925041000,-304.0,5.507e-05,2]
[422393848,1778925041000,-152.37612044,5.507e-05,7]
[422393870,1778925046000,-995.33703777,5.507e-05,7]
[422393877,1778925046000,-300.0,5.588e-05,2]
[422393876,1778925046000,-300.0,5.588e-05,2]
[422393873,1778925046000,-300.0,5.588e-05,2]
[422393875,1778925046000,-300.0,5.588e-05,2]
[422393885,1778925046000,-300.0,5.588e-05,2]
[422393872,1778925046000,-6295.39302302,5.588e-05,2]
[422393865,1778925046000,-219.65699112,5.507e-05,7]
[422393869,1778925046000,-368.69343961,5.507e-05,7]
[422393868,1778925046000,-220.20009979,5.507e-05,7]
[422393871,1778925046000,-342.75600286,5.507e-05,7]
[422393866,1778925046000,-162.32184579,5.507e-05,7]
[422393864,1778925046000,-1.14756054,5.507e-05,2]
[422393884,1778925046000,-300.0,5.588e-05,2]
[422393867,1778925046000,-845.83109807,5.507e-05,7]
[422393881,1778925046000,-300.0,5.588e-05,2]
[422393874,1778925046000,-300.0,5.588e-05,2]
[422393878,1778925046000,-300.0,5.588e-05,2]
[422393879,1778925046000,-300.0,5.588e-05,2]
[422393894,1778925046000,-645.58984326,5.781e-05,7]
[422393895,1778925046000,-473.89832338,5.452e-05,2]
[422393892,1778925046000,-965.29763031,5.781e-05,7]
[422393893,1778925046000,-768.36594261,5.781e-05,7]
[422393891,1778925046000,-932.42439188,5.781e-05,7]
[422393889,1778925046000,-152.0,5.721e-05,7]
[422393897,1778925046000,-752.64365614,5.781e-05,7]
[422393887,1778925046000,-300.0,5.588e-05,2]
[422393896,1778925046000,-215.02066021,5.781e-05,7]
[422393888,1778925046000,-600.0,5.588e-05,2]
[422393886,1778925046000,-300.0,5.588e-05,2]
[422393883,1778925046000,-300.0,5.588e-05,2]
[422393882,1778925046000,-300.0,5.588e-05,2]
[422393880,1778925046000,-300.0,5.588e-05,2]
[422393890,1778925046000,-152.0,5.741e-05,7]
[422393924,1778925047000,-545.66830394,5.926e-05,7]
[422393922,1778925047000,-110.53552051,5.926e-05,7]
[422393917,1778925047000,-423.85006588,5.926e-05,7]
[422393915,1778925047000,-556.53661913,5.926e-05,7]
[422393902,1778925047000,-900.04653114,5.781e-05,7]
[422393900,1778925047000,-841.36912311,5.781e-05,7]
[422393904,1778925047000,-1018.76765859,5.809e-05,7]
[422393908,1778925047000,-844.00483748,5.809e-05,7]
[422393914,1778925047000,-201.84214742,5.926e-05,2]
[422393912,1778925047000,-1244.17129722,5.809e-05,7]
[422393906,1778925047000,-760.02925538,5.809e-05,7]
[422393910,1778925047000,-1057.28887259,5.809e-05,7]
[422393929,1778925047000,-451.80978448,5.926e-05,7]
[422393898,1778925047000,-953.76792381,5.781e-05,7]
[422393935,1778925047000,-560.2442572,5.926e-05,7]
[422393953,1778925047000,-71.13923205,6.227e-05,7]
[422393933,1778925047000,-214.67803474,5.926e-05,7]
[422393946,1778925047000,-712.51411519,6.227e-05,7]
[422393949,1778925047000,-602.41304598,6.227e-05,7]
[422393950,1778925047000,-615.75137087,6.227e-05,7]
[422393948,1778925047000,-451.00426062,6.227e-05,7]
[422393947,1778925047000,-727.55773858,6.227e-05,7]
[422393945,1778925047000,-742.0488255,6.227e-05,7]
[422393931,1778925047000,-461.81352815,5.926e-05,7]
[422393944,1778925047000,-403.68429485,6.227e-05,2]
[422393952,1778925047000,-272.70845464,6.227e-05,2]
[422393951,1778925047000,-429.35606949,6.227e-05,7]
[422393941,1778925047000,-248.83425944,6.194e-05,7]
[422393939,1778925047000,-720.0,6.147e-05,2]
[422393927,1778925047000,-225.50213031,5.926e-05,7]
[422393937,1778925047000,-420.0,6.026e-05,2]
[422393943,1778925047000,-238.07127809,6.227e-05,7]
[422393958,1778925050000,-746.99234293,6.227e-05,7]
[422393957,1778925050000,-184.08975402,6.227e-05,7]
[422393959,1778925050000,-500.0,6.23e-05,2]
[422393964,1778925050000,-466.11879857,6.23e-05,2]
[422393961,1778925050000,-270.0,6.23e-05,2]
[422393963,1778925050000,-417.21120143,6.23e-05,2]
[422393960,1778925050000,-500.0,6.23e-05,2]
[422393962,1778925050000,-82.78879857,6.23e-05,2]
[422393976,1778925332000,4408.65564547,0.00018493,120]
[422393981,1778925420000,2197.24219816,0.00018493,120]
[422393993,1778925635000,-5000.0,5.262e-05,2]
[422393994,1778925652000,-465.8109,5.209e-05,2]
[422393995,1778925669000,-340.38340898,5.289e-05,2]
[422393996,1778925686000,-1200.0,5.477e-05,2]
[422393997,1778925703000,-300.0,5.477e-05,2]
[422393998,1778925706000,164.617923,2.499e-05,2]
[422394004,1778925719000,-389.08629658,5.479e-05,7]
[422394005,1778925736000,-300.0,5.478e-05,2]
[422394007,1778925753000,-153.81508916,5.479e-05,7]
[422394009,1778925771000,-390.97519329,5.479e-05,7]
[422394013,1778925835000,-454.01126469,5.479e-05,7]
[422394012,1778925835000,-586.46278993,5.479e-05,7]
[422394014,1778925835000,-324.01675121,5.479e-05,7]
[422394015,1778925835000,-486.02512682,5.479e-05,7]
[422394016,1778925835000,-538.12735265,5.479e-05,7]
[422394017,1778925835000,-242.43958714,5.479e-05,7]
[422394020,1778925835000,-343.1220333,5.479e-05,7]
[422394019,1778925835000,-171.56101665,5.479e-05,7]
[422394022,1778925835000,-514.68304996,5.479e-05,7]
[422394021,1778925835000,-549.79038861,5.479e-05,7]
[422394023,1778925835000,-188.0400718,5.479e-05,7]
[422394018,1778925835000,-622.46991653,5.479e-05,7]
[422394039,1778925836000,-672.81842937,5.507e-05,7]
[422394037,1778925836000,-686.24406661,5.507e-05,7]
[422394038,1778925836000,-376.08014361,5.507e-05,7]
[422394035,1778925836000,-829.9598887,5.507e-05,7]
[422394036,1778925836000,-161.00852606,5.507e-05,7]
[422394034,1778925836000,-401.91149231,5.507e-05,7]
[422394033,1778925836000,-484.87917427,5.507e-05,7]
[422394031,1778925836000,-717.50313687,5.507e-05,7]
[422394030,1778925836000,-427.56411388,5.507e-05,7]
[422394040,1778925836000,-152.0,5.788e-05,7]
[422394029,1778925836000,-376.21225529,5.507e-05,7]
[422394027,1778925836000,-371.80504556,5.507e-05,7]
[422394025,1778925836000,-423.06724926,5.507e-05,7]
[422394026,1778925836000,-202.8432762,5.507e-05,7]
[422394024,1778925836000,-504.61382203,5.479e-05,7]
[422394032,1778925836000,-347.68867934,5.507e-05,7]
[422394041,1778925836000,-756.68544115,5.809e-05,7]
[422394028,1778925836000,-307.63017833,5.507e-05,7]
[422394045,1778925836000,-1158.35715637,6.233e-05,7]
[422394042,1778925836000,-841.02303671,5.809e-05,7]
[422394057,1778925836000,-909.44717323,6.529e-05,7]
[422394059,1778925836000,-933.74042867,6.529e-05,7]
[422394058,1778925836000,-769.68921359,6.529e-05,7]
[422394055,1778925836000,-972.71574146,6.499e-05,7]
[422394056,1778925836000,-890.64264399,6.529e-05,7]
[422394052,1778925836000,-1012.80580498,6.262e-05,7]
[422394053,1778925836000,-1268.74664711,6.262e-05,7]
[422394050,1778925836000,-1080.05583737,6.234e-05,7]
[422394051,1778925836000,-908.02252937,6.261e-05,7]
[422394046,1778925836000,-922.03913113,6.233e-05,7]
[422394049,1778925836000,-1144.52150857,6.233e-05,7]
[422394048,1778925836000,-998.90481326,6.233e-05,7]